fUSD/lending_fUSD_20260622
["ID","MTS","AMOUNT","RATE_DAILY","PERIOD"]
[425975623,1782061907000,-12329.73713696,0.00028767,25]
[425975629,1782061907000,-300.0,0.00028802,30]
[425975624,1782061907000,-39306.61215689,0.00028767,10]
[425975628,1782061907000,-220.27,0.000288,30]
[425975625,1782061907000,-240.12,0.00028788,30]
[425975627,1782061907000,-748.11,0.000288,7]
[425975635,1782061907000,-240.12,0.0002882,2]
[425975636,1782061907000,-78108.591073,0.00028836,2]
[425975634,1782061907000,-1439.74,0.00028819,2]
[425975633,1782061907000,-811.37,0.00028819,2]
[425975575,1782061907000,-500.0,0.00028767,2]
[425975613,1782061907000,-500.0,0.00028767,2]
[425975611,1782061907000,-500.0,0.00028767,2]
[425975632,1782061907000,-1298.69,0.00028819,2]
[425975603,1782061907000,-2744.45,0.00028767,2]
[425975607,1782061907000,-500.0,0.00028767,2]
[425975578,1782061907000,-500.0,0.00028767,2]
[425975581,1782061907000,-500.0,0.00028767,2]
[425975576,1782061907000,-500.0,0.00028767,2]
[425975577,1782061907000,-500.0,0.00028767,2]
[425975585,1782061907000,-8230.87,0.00028767,2]
[425975584,1782061907000,-4815.29,0.00028767,2]
[425975586,1782061907000,-500.0,0.00028767,2]
[425975590,1782061907000,-500.0,0.00028767,2]
[425975588,1782061907000,-1825.32,0.00028767,2]
[425975589,1782061907000,-500.0,0.00028767,2]
[425975592,1782061907000,-529.37,0.00028767,2]
[425975587,1782061907000,-500.0,0.00028767,2]
[425975593,1782061907000,-8318.01,0.00028767,2]
[425975580,1782061907000,-1823.11,0.00028767,2]
[425975605,1782061907000,-500.0,0.00028767,2]
[425975591,1782061907000,-3531.97,0.00028767,2]
[425975601,1782061907000,-500.0,0.00028767,2]
[425975638,1782061907000,-161.0,0.00028839,30]
[425975604,1782061907000,-6111.21,0.00028767,2]
[425975599,1782061907000,-500.0,0.00028767,2]
[425975600,1782061907000,-500.0,0.00028767,2]
[425975594,1782061907000,-500.0,0.00028767,2]
[425975595,1782061907000,-500.0,0.00028767,2]
[425975598,1782061907000,-500.0,0.00028767,2]
[425975597,1782061907000,-4605.85,0.00028767,2]
[425975602,1782061907000,-546.99,0.00028767,2]
[425975606,1782061907000,-500.0,0.00028767,2]
[425975596,1782061907000,-500.0,0.00028767,2]
[425975678,1782061908000,-2018.53048,0.00029,2]
[425975668,1782061908000,-240.12,0.00028979,30]
[425975670,1782061908000,-811.1,0.00028986,30]
[425975665,1782061908000,-300.0,0.00028968,30]
[425975672,1782061908000,-811.37,0.00028986,30]
[425975664,1782061908000,-189.53698715,0.00028964,2]
[425975683,1782061908000,-500.0,0.00029,2]
[425975682,1782061908000,-3582.973444,0.00029,2]
[425975673,1782061908000,-1439.74,0.00028986,30]
[425975677,1782061908000,-2000.0,0.00029,2]
[425975666,1782061908000,-990.59026533,0.0002897,2]
[425975679,1782061908000,-10000.0,0.00029,2]
[425975674,1782061908000,-427149.14381687,0.00029,7]
[425975676,1782061908000,-693.0,0.00029,2]
[425975671,1782061908000,-1298.69,0.00028986,30]
[425975681,1782061908000,-514687.13229677,0.00029,7]
[425975680,1782061908000,-1003.0,0.00029,2]
[425975686,1782061908000,-500.0,0.00029,2]
[425975684,1782061908000,-500.0,0.00029,2]
[425975690,1782061908000,-507.56,0.00029,2]
[425975667,1782061908000,-700.0,0.0002897,2]
[425975694,1782061908000,-513.49,0.00029,2]
[425975675,1782061908000,-301.71,0.00029,2]
[425975669,1782061908000,-2370.42,0.00028986,30]
[425975657,1782061908000,-200.0,0.000289,10]
[425975659,1782061908000,-1334.72,0.00028915,2]
[425975689,1782061908000,-500.0,0.00029,2]
[425975641,1782061908000,-405.0,0.00028848,30]
[425975640,1782061908000,-155.0,0.00028839,30]
[425975642,1782061908000,-479.0,0.00028848,30]
[425975639,1782061908000,-174.0,0.00028839,30]
[425975643,1782061908000,-169.0,0.00028848,30]
[425975645,1782061908000,-528.0,0.00028848,30]
[425975644,1782061908000,-154.0,0.00028848,30]
[425975647,1782061908000,-648.0,0.00028848,30]
[425975656,1782061908000,-638.15965093,0.000289,2]
[425975655,1782061908000,-480.73832786,0.000289,2]
[425975648,1782061908000,-184.0,0.00028851,30]
[425975652,1782061908000,-240.12,0.00028883,30]
[425975650,1782061908000,-240.12,0.00028852,7]
[425975646,1782061908000,-157.0,0.00028848,30]
[425975654,1782061908000,-200.0,0.000289,2]
[425975649,1782061908000,-159.0,0.00028851,30]
[425975653,1782061908000,-300.0,0.00028885,30]
[425975651,1782061908000,-123794.96353055,0.0002888,60]
[425975658,1782061908000,-3269.0,0.00028904,2]
[425975660,1782061908000,-240.12,0.00028915,2]
[425975663,1782061908000,-160.0,0.00028953,3]
[425975662,1782061908000,-240.12,0.00028947,7]
[425975661,1782061908000,-350.0,0.00028939,2]
[425975692,1782061908000,-203.96390154,0.00029,2]
[425975687,1782061908000,-500.0,0.00029,2]
[425975733,1782061908000,-500.0,0.00029041,2]
[425975723,1782061908000,-500.0,0.00029041,2]
[425975722,1782061908000,-500.0,0.00029041,2]
[425975719,1782061908000,-501.82455083,0.00029041,2]
[425975717,1782061908000,-713.05205055,0.00029,2]
[425975725,1782061908000,-500.0,0.00029041,2]
[425975724,1782061908000,-500.0,0.00029041,2]
[425975726,1782061908000,-500.0,0.00029041,2]
[425975729,1782061908000,-576.16,0.00029041,2]
[425975728,1782061908000,-500.0,0.00029041,2]
[425975731,1782061908000,-500.0,0.00029041,2]
[425975730,1782061908000,-500.0,0.00029041,2]
[425975732,1782061908000,-500.0,0.00029041,2]
[425975727,1782061908000,-500.0,0.00029041,2]
[425975735,1782061908000,-500.0,0.00029041,2]
[425975734,1782061908000,-500.0,0.00029041,2]
[425975736,1782061908000,-500.0,0.00029041,2]
[425975737,1782061908000,-500.0,0.00029041,2]
[425975738,1782061908000,-579.02,0.00029041,2]
[425975740,1782061908000,-290.14602434,0.00029041,2]
[425975739,1782061908000,-500.0,0.00029041,2]
[425975742,1782061908000,-475.79652677,0.00029041,2]
[425975741,1782061908000,-2687.78,0.00029041,2]
[425975688,1782061908000,-500.0,0.00029,2]
[425975718,1782061908000,-240.12,0.0002901,2]
[425975713,1782061908000,-1025.33,0.00029,30]
[425975721,1782061908000,-156.942244,0.00029041,2]
[425975714,1782061908000,-1413.0,0.00029,7]
[425975685,1782061908000,-500.0,0.00029,2]
[425975693,1782061908000,-250.29531531,0.00029,2]
[425975697,1782061908000,-26336.461677,0.00029,3]
[425975691,1782061908000,-279.11407446,0.00029,2]
[425975696,1782061908000,-35363.57678415,0.00029,2]
[425975695,1782061908000,-2328.59,0.00029,7]
[425975720,1782061908000,-43950.135166,0.00029041,2]
[425975707,1782061908000,-7315.61512106,0.00029,2]
[425975709,1782061908000,-10000.0,0.00029,2]
[425975708,1782061908000,-10000.0,0.00029,2]
[425975700,1782061908000,-14384.83,0.00029,2]
[425975698,1782061908000,-1002.23,0.00029,2]
[425975699,1782061908000,-9549.95591553,0.00029,2]
[425975710,1782061908000,-600.0,0.00029,2]
[425975716,1782061908000,-30000.0,0.00029,6]
[425975711,1782061908000,-524.49,0.00029,2]
[425975715,1782061908000,-528.70629962,0.00029,2]
[425975705,1782061908000,-3431.96590456,0.00029,2]
[425975712,1782061908000,-1306052.30979987,0.00029,7]
[425975703,1782061908000,-11917.34233539,0.00029,2]
[425975704,1782061908000,-10000.0,0.00029,2]
[425975702,1782061908000,-170066.19816545,0.00029,7]
[425975701,1782061908000,-12212.43443227,0.00029,2]
[425975706,1782061908000,-10000.0,0.00029,2]
[425975788,1782061909000,-500.0,0.00029041,2]
[425975778,1782061909000,-1369.32,0.00029041,2]
[425975782,1782061909000,-500.0,0.00029041,2]
[425975779,1782061909000,-500.0,0.00029041,2]
[425975775,1782061909000,-500.0,0.00029041,2]
[425975786,1782061909000,-1267.5,0.00029041,2]
[425975780,1782061909000,-500.0,0.00029041,2]
[425975781,1782061909000,-553.48,0.00029041,2]
[425975783,1782061909000,-500.0,0.00029041,2]
[425975785,1782061909000,-500.0,0.00029041,2]
[425975776,1782061909000,-923.93,0.00029041,2]
[425975789,1782061909000,-597.73,0.00029041,2]
[425975784,1782061909000,-500.0,0.00029041,2]
[425975793,1782061909000,-500.0,0.00029041,2]
[425975812,1782061909000,-500.0,0.00029041,2]
[425975787,1782061909000,-500.0,0.00029041,2]
[425975794,1782061909000,-500.0,0.00029041,2]
[425975792,1782061909000,-555.93,0.00029041,2]
[425975799,1782061909000,-526.65,0.00029041,2]
[425975790,1782061909000,-500.0,0.00029041,2]
[425975798,1782061909000,-527.94,0.00029041,2]
[425975791,1782061909000,-500.0,0.00029041,2]
[425975795,1782061909000,-498.37669437,0.00029041,2]
[425975797,1782061909000,-500.0,0.00029041,2]
[425975803,1782061909000,-500.0,0.00029041,2]
[425975800,1782061909000,-500.0,0.00029041,2]
[425975810,1782061909000,-500.0,0.00029041,2]
[425975777,1782061909000,-500.0,0.00029041,2]
[425975796,1782061909000,-500.0,0.00029041,2]
[425975774,1782061909000,-500.0,0.00029041,2]
[425975748,1782061909000,-536.66,0.00029041,2]
[425975771,1782061909000,-975.39,0.00029041,2]
[425975743,1782061909000,-500.0,0.00029041,2]
[425975746,1782061909000,-500.0,0.00029041,2]
[425975747,1782061909000,-500.0,0.00029041,2]
[425975745,1782061909000,-1000.0,0.00029041,7]
[425975744,1782061909000,-500.0,0.00029041,2]
[425975749,1782061909000,-500.0,0.00029041,2]
[425975752,1782061909000,-631.9,0.00029041,2]
[425975753,1782061909000,-508.36,0.00029041,2]
[425975750,1782061909000,-500.0,0.00029041,2]
[425975751,1782061909000,-500.0,0.00029041,2]
[425975755,1782061909000,-500.0,0.00029041,2]
[425975756,1782061909000,-549.8908291,0.00029041,2]
[425975761,1782061909000,-645.4,0.00029041,2]
[425975772,1782061909000,-651.64,0.00029041,2]
[425975760,1782061909000,-1266.12,0.00029041,2]
[425975754,1782061909000,-500.0,0.00029041,2]
[425975759,1782061909000,-500.0,0.00029041,2]
[425975757,1782061909000,-500.0,0.00029041,2]
[425975763,1782061909000,-1217.07,0.00029041,2]
[425975767,1782061909000,-842.29,0.00029041,2]
[425975762,1782061909000,-1160.03,0.00029041,2]
[425975764,1782061909000,-1512.27,0.00029041,2]
[425975765,1782061909000,-500.0,0.00029041,2]
[425975773,1782061909000,-500.0,0.00029041,2]
[425975766,1782061909000,-500.0,0.00029041,2]
[425975769,1782061909000,-544.8,0.00029041,2]
[425975768,1782061909000,-500.0,0.00029041,2]
[425975770,1782061909000,-643.15,0.00029041,2]
[425975758,1782061909000,-1880.63,0.00029041,2]
[425975811,1782061909000,-529.62,0.00029041,2]
[425975809,1782061909000,-500.0,0.00029041,2]
[425975804,1782061909000,-610.79,0.00029041,2]
[425975851,1782061909000,-632.32309354,0.00029041,2]
[425975841,1782061909000,-549.42,0.00029041,2]
[425975846,1782061909000,-500.0,0.00029041,2]
[425975847,1782061909000,-500.0,0.00029041,2]
[425975852,1782061909000,-500.0,0.00029041,2]
[425975844,1782061909000,-205.01843079,0.00029041,2]
[425975842,1782061909000,-554.72,0.00029041,2]
[425975853,1782061909000,-500.0,0.00029041,2]
[425975843,1782061909000,-180.47710061,0.00029041,2]
[425975845,1782061909000,-500.0,0.00029041,2]
[425975849,1782061909000,-500.0,0.00029041,2]
[425975848,1782061909000,-500.0,0.00029041,2]
[425975850,1782061909000,-500.0,0.00029041,2]
[425975840,1782061909000,-500.0,0.00029041,2]
[425975854,1782061909000,-847.94,0.00029041,2]
[425975857,1782061909000,-500.0,0.00029041,2]
[425975859,1782061909000,-741.63,0.00029041,2]
[425975860,1782061909000,-831.45,0.00029041,2]
[425975858,1782061909000,-500.0,0.00029041,2]
[425975861,1782061909000,-535.03,0.00029041,2]
[425975863,1782061909000,-500.0,0.00029041,2]
[425975856,1782061909000,-500.0,0.00029041,2]
[425975862,1782061909000,-500.0,0.00029041,2]
[425975865,1782061909000,-500.0,0.00029041,2]
[425975805,1782061909000,-500.0,0.00029041,2]
[425975867,1782061909000,-663.71,0.00029041,2]
[425975866,1782061909000,-500.0,0.00029041,2]
[425975868,1782061909000,-670.78,0.00029041,2]
[425975855,1782061909000,-500.0,0.00029041,2]
[425975839,1782061909000,-500.0,0.00029041,2]
[425975864,1782061909000,-534.55,0.00029041,2]
[425975838,1782061909000,-500.0,0.00029041,2]
[425975835,1782061909000,-766.03,0.00029041,2]
[425975801,1782061909000,-540.54,0.00029041,2]
[425975807,1782061909000,-500.0,0.00029041,2]
[425975813,1782061909000,-500.0,0.00029041,2]
[425975806,1782061909000,-902.56,0.00029041,2]
[425975808,1782061909000,-500.0,0.00029041,2]
[425975815,1782061909000,-591.28,0.00029041,2]
[425975814,1782061909000,-500.0,0.00029041,2]
[425975826,1782061909000,-457.47628436,0.00029041,2]
[425975825,1782061909000,-500.0,0.00029041,2]
[425975816,1782061909000,-500.0,0.00029041,2]
[425975821,1782061909000,-500.0,0.00029041,2]
[425975817,1782061909000,-560.08,0.00029041,2]
[425975820,1782061909000,-500.0,0.00029041,2]
[425975802,1782061909000,-527.33537068,0.00029041,2]
[425975822,1782061909000,-598.59,0.00029041,2]
[425975823,1782061909000,-500.0,0.00029041,2]
[425975836,1782061909000,-500.0,0.00029041,2]
[425975829,1782061909000,-819.78,0.00029041,2]
[425975832,1782061909000,-534.07,0.00029041,2]
[425975828,1782061909000,-562.86,0.00029041,2]
[425975831,1782061909000,-500.0,0.00029041,2]
[425975837,1782061909000,-500.0,0.00029041,2]
[425975830,1782061909000,-506.54,0.00029041,2]
[425975818,1782061909000,-500.0,0.00029041,2]
[425975833,1782061909000,-500.0,0.00029041,2]
[425975834,1782061909000,-3422.69,0.00029041,2]
[425975824,1782061909000,-500.0,0.00029041,2]
[425975827,1782061909000,-972.04,0.00029041,2]
[425975819,1782061909000,-597.07,0.00029041,2]
[425975897,1782061910000,-500.0,0.00029041,2]
[425975909,1782061910000,-500.0,0.00029041,2]
[425975900,1782061910000,-519.3,0.00029041,2]
[425975903,1782061910000,-1318.07,0.00029041,2]
[425975905,1782061910000,-690.91,0.00029041,2]
[425975902,1782061910000,-500.0,0.00029041,2]
[425975901,1782061910000,-893.03,0.00029041,2]
[425975906,1782061910000,-500.0,0.00029041,2]
[425975908,1782061910000,-500.0,0.00029041,2]
[425975907,1782061910000,-500.0,0.00029041,2]
[425975910,1782061910000,-500.0,0.00029041,2]
[425975904,1782061910000,-500.0,0.00029041,2]
[425975918,1782061910000,-500.0,0.00029041,2]
[425975913,1782061910000,-500.0,0.00029041,2]
[425975914,1782061910000,-594.9,0.00029041,2]
[425975912,1782061910000,-500.0,0.00029041,2]
[425975915,1782061910000,-500.0,0.00029041,2]
[425975920,1782061910000,-500.0,0.00029041,2]
[425975919,1782061910000,-1092.63,0.00029041,2]
[425975916,1782061910000,-500.0,0.00029041,2]
[425975917,1782061910000,-803.29,0.00029041,2]
[425975921,1782061910000,-280.43751099,0.00029041,2]
[425975931,1782061910000,-500.0,0.00029041,2]
[425975894,1782061910000,-508.83,0.00029041,2]
[425975911,1782061910000,-800.23,0.00029041,2]
[425975898,1782061910000,-500.0,0.00029041,2]
[425975885,1782061910000,-588.39,0.00029041,2]
[425975896,1782061910000,-500.0,0.00029041,2]
[425975876,1782061910000,-500.0,0.00029041,2]
[425975875,1782061910000,-500.0,0.00029041,2]
[425975877,1782061910000,-500.0,0.00029041,2]
[425975870,1782061910000,-500.0,0.00029041,2]
[425975869,1782061910000,-567.5,0.00029041,2]
[425975874,1782061910000,-500.0,0.00029041,2]
[425975872,1782061910000,-500.0,0.00029041,2]
[425975871,1782061910000,-1423.29,0.00029041,2]
[425975873,1782061910000,-500.0,0.00029041,2]
[425975886,1782061910000,-500.0,0.00029041,2]
[425975887,1782061910000,-792.91,0.00029041,2]
[425975878,1782061910000,-1244.82,0.00029041,2]
[425975884,1782061910000,-500.0,0.00029041,2]
[425975882,1782061910000,-500.0,0.00029041,2]
[425975881,1782061910000,-620.22,0.00029041,2]
[425975880,1782061910000,-952.51,0.00029041,2]
[425975879,1782061910000,-698.8,0.00029041,2]
[425975883,1782061910000,-500.0,0.00029041,2]
[425975889,1782061910000,-500.0,0.00029041,2]
[425975888,1782061910000,-500.0,0.00029041,2]
[425975899,1782061910000,-1511.74,0.00029041,2]
[425975893,1782061910000,-678.71,0.00029041,2]
[425975895,1782061910000,-500.0,0.00029041,2]
[425975891,1782061910000,-2678.53,0.00029041,2]
[425975892,1782061910000,-500.0,0.00029041,2]
[425975890,1782061910000,-640.68,0.00029041,2]
[425975930,1782061910000,-500.0,0.00029041,2]
[425975929,1782061910000,-222.39316866,0.00029041,2]
[425975933,1782061910000,-500.0,0.00029041,2]
[425975953,1782061910000,-500.0,0.00029041,2]
[425975954,1782061910000,-500.0,0.00029041,2]
[425975958,1782061910000,-500.0,0.00029041,2]
[425975961,1782061910000,-500.0,0.00029041,2]
[425975964,1782061910000,-615.01442451,0.00029041,2]
[425975969,1782061910000,-500.0,0.00029041,2]
[425975968,1782061910000,-1130.66,0.00029041,2]
[425975962,1782061910000,-500.0,0.00029041,2]
[425975959,1782061910000,-500.0,0.00029041,2]
[425975963,1782061910000,-500.0,0.00029041,2]
[425975967,1782061910000,-572.65,0.00029041,2]
[425975966,1782061910000,-500.0,0.00029041,2]
[425975965,1782061910000,-500.0,0.00029041,2]
[425975971,1782061910000,-500.0,0.00029041,2]
[425975970,1782061910000,-500.0,0.00029041,2]
[425975972,1782061910000,-6753.8,0.00029041,2]
[425975973,1782061910000,-500.0,0.00029041,2]
[425975975,1782061910000,-500.0,0.00029041,2]
[425975976,1782061910000,-3926.18,0.00029041,2]
[425975974,1782061910000,-500.0,0.00029041,2]
[425975978,1782061910000,-2712.86,0.00029041,2]
[425975977,1782061910000,-500.0,0.00029041,2]
[425975980,1782061910000,-412.7812557,0.00029041,2]
[425975979,1782061910000,-500.0,0.00029041,2]
[425975922,1782061910000,-540.14,0.00029041,2]
[425975955,1782061910000,-1000.0,0.00029041,2]
[425975952,1782061910000,-1056.03,0.00029041,2]
[425975960,1782061910000,-500.0,0.00029041,2]
[425975947,1782061910000,-500.0,0.00029041,2]
[425975951,1782061910000,-500.0,0.00029041,2]
[425975925,1782061910000,-500.0,0.00029041,2]
[425975923,1782061910000,-500.0,0.00029041,2]
[425975932,1782061910000,-3987.32,0.00029041,2]
[425975924,1782061910000,-500.0,0.00029041,2]
[425975927,1782061910000,-587.76768633,0.00029041,2]
[425975926,1782061910000,-500.0,0.00029041,2]
[425975934,1782061910000,-654.24,0.00029041,2]
[425975938,1782061910000,-500.0,0.00029041,2]
[425975940,1782061910000,-602.92,0.00029041,2]
[425975939,1782061910000,-500.0,0.00029041,2]
[425975935,1782061910000,-155.77383125,0.00029041,2]
[425975945,1782061910000,-500.0,0.00029041,2]
[425975928,1782061910000,-500.0,0.00029041,2]
[425975956,1782061910000,-1016.84,0.00029041,2]
[425975946,1782061910000,-500.0,0.00029041,2]
[425975948,1782061910000,-500.0,0.00029041,2]
[425975950,1782061910000,-580.53078941,0.00029041,2]
[425975957,1782061910000,-500.0,0.00029041,2]
[425975944,1782061910000,-500.0,0.00029041,2]
[425975949,1782061910000,-1118.18,0.00029041,2]
[425975941,1782061910000,-500.0,0.00029041,2]
[425975943,1782061910000,-5224.19,0.00029041,2]
[425975937,1782061910000,-500.0,0.00029041,2]
[425975936,1782061910000,-500.0,0.00029041,2]
[425975942,1782061910000,-5864.59,0.00029041,2]
[425976017,1782061911000,-4867.06,0.00029041,2]
[425976019,1782061911000,-4107.48,0.00029041,2]
[425976016,1782061911000,-500.0,0.00029041,2]
[425976025,1782061911000,-500.0,0.00029041,2]
[425976026,1782061911000,-9631.81,0.00029041,2]
[425976008,1782061911000,-822.03,0.00029041,2]
[425976011,1782061911000,-500.0,0.00029041,2]
[425976010,1782061911000,-500.0,0.00029041,2]
[425976014,1782061911000,-9055.22,0.00029041,2]
[425976018,1782061911000,-500.0,0.00029041,2]
[425976012,1782061911000,-547.74,0.00029041,2]
[425976015,1782061911000,-500.0,0.00029041,2]
[425976020,1782061911000,-186.97001582,0.00029041,2]
[425976032,1782061911000,-500.0,0.00029041,2]
[425976022,1782061911000,-839.88,0.00029041,2]
[425976023,1782061911000,-500.0,0.00029041,2]
[425976024,1782061911000,-913.85,0.00029041,2]
[425976027,1782061911000,-500.0,0.00029041,2]
[425976031,1782061911000,-1094.84,0.00029041,2]
[425976030,1782061911000,-500.0,0.00029041,2]
[425976028,1782061911000,-4501.1,0.00029041,2]
[425976029,1782061911000,-1087.92,0.00029041,2]
[425976035,1782061911000,-8104.14,0.00029041,2]
[425976036,1782061911000,-3218.44,0.00029041,2]
[425976034,1782061911000,-500.0,0.00029041,2]
[425976033,1782061911000,-500.0,0.00029041,2]
[425976021,1782061911000,-500.0,0.00029041,2]
[425976007,1782061911000,-500.0,0.00029041,2]
[425975988,1782061911000,-500.0,0.00029041,2]
[425976004,1782061911000,-4173.31,0.00029041,2]
[425976037,1782061911000,-3370.08,0.00029041,2]
[425975984,1782061911000,-4889.99,0.00029041,2]
[425975982,1782061911000,-500.0,0.00029041,2]
[425975989,1782061911000,-732.43,0.00029041,2]
[425975990,1782061911000,-541.15,0.00029041,2]
[425975983,1782061911000,-500.0,0.00029041,2]
[425975987,1782061911000,-405.16158222,0.00029041,2]
[425975981,1782061911000,-873.86,0.00029041,2]
[425975985,1782061911000,-5923.33,0.00029041,2]
[425975986,1782061911000,-741.05,0.00029041,2]
[425975993,1782061911000,-500.0,0.00029041,2]
[425975991,1782061911000,-1048.26,0.00029041,2]
[425976009,1782061911000,-1547.68,0.00029041,2]
[425975994,1782061911000,-500.0,0.00029041,2]
[425975997,1782061911000,-500.0,0.00029041,2]
[425975996,1782061911000,-500.0,0.00029041,2]
[425976002,1782061911000,-500.0,0.00029041,2]
[425975992,1782061911000,-500.0,0.00029041,2]
[425976000,1782061911000,-605.17,0.00029041,2]
[425975999,1782061911000,-6410.69,0.00029041,2]
[425975998,1782061911000,-4756.56,0.00029041,2]
[425976001,1782061911000,-12052.2,0.00029041,2]
[425976003,1782061911000,-500.0,0.00029041,2]
[425976005,1782061911000,-2146.6,0.00029041,2]
[425976006,1782061911000,-8253.7,0.00029041,2]
[425976013,1782061911000,-500.0,0.00029041,2]
[425975995,1782061911000,-500.0,0.00029041,2]
[425976038,1782061911000,-9092.8,0.00029041,2]
[425976094,1782061911000,-2013.27,0.00029041,2]
[425976048,1782061911000,-500.0,0.00029041,2]
[425976067,1782061911000,-500.0,0.00029041,2]
[425976069,1782061911000,-10460.79,0.00029041,2]
[425976070,1782061911000,-742.97,0.00029041,2]
[425976071,1782061911000,-500.0,0.00029041,2]
[425976075,1782061911000,-500.0,0.00029041,2]
[425976080,1782061911000,-6683.71,0.00029041,2]
[425976085,1782061911000,-500.0,0.00029041,2]
[425976081,1782061911000,-538.42,0.00029041,2]
[425976082,1782061911000,-629.28,0.00029041,2]
[425976076,1782061911000,-6462.79,0.00029041,2]
[425976077,1782061911000,-500.0,0.00029041,2]
[425976079,1782061911000,-3874.09,0.00029041,2]
[425976068,1782061911000,-981.05,0.00029041,2]
[425976078,1782061911000,-4131.31,0.00029041,2]
[425976083,1782061911000,-500.0,0.00029041,2]
[425976084,1782061911000,-500.0,0.00029041,2]
[425976088,1782061911000,-853.42,0.00029041,2]
[425976087,1782061911000,-785.35,0.00029041,2]
[425976089,1782061911000,-500.0,0.00029041,2]
[425976093,1782061911000,-670.57,0.00029041,2]
[425976095,1782061911000,-1483.1,0.00029041,2]
[425976096,1782061911000,-709.73,0.00029041,2]
[425976090,1782061911000,-500.0,0.00029041,2]
[425976091,1782061911000,-500.0,0.00029041,2]
[425976092,1782061911000,-500.0,0.00029041,2]
[425976039,1782061911000,-946.16,0.00029041,2]
[425976086,1782061911000,-500.0,0.00029041,2]
[425976074,1782061911000,-15060.49,0.00029041,2]
[425976097,1782061911000,-501.49,0.00029041,2]
[425976065,1782061911000,-8432.29,0.00029041,2]
[425976066,1782061911000,-10410.98,0.00029041,2]
[425976050,1782061911000,-6489.37,0.00029041,2]
[425976047,1782061911000,-4428.27,0.00029041,2]
[425976049,1782061911000,-3434.42,0.00029041,2]
[425976042,1782061911000,-8949.23,0.00029041,2]
[425976043,1782061911000,-6582.69,0.00029041,2]
[425976045,1782061911000,-826.36,0.00029041,2]
[425976040,1782061911000,-544.71,0.00029041,2]
[425976044,1782061911000,-500.0,0.00029041,2]
[425976041,1782061911000,-500.0,0.00029041,2]
[425976046,1782061911000,-500.0,0.00029041,2]
[425976052,1782061911000,-500.0,0.00029041,2]
[425976056,1782061911000,-8108.8,0.00029041,2]
[425976051,1782061911000,-500.0,0.00029041,2]
[425976058,1782061911000,-763.6,0.00029041,2]
[425976059,1782061911000,-2478.59,0.00029041,2]
[425976072,1782061911000,-631.38,0.00029041,2]
[425976064,1782061911000,-3418.67,0.00029041,2]
[425976061,1782061911000,-500.0,0.00029041,2]
[425976062,1782061911000,-514.73,0.00029041,2]
[425976063,1782061911000,-500.0,0.00029041,2]
[425976055,1782061911000,-500.0,0.00029041,2]
[425976057,1782061911000,-500.0,0.00029041,2]
[425976054,1782061911000,-6468.05,0.00029041,2]